fUST/lending_fUST_20250131
["ID","MTS","AMOUNT","RATE_DAILY","PERIOD"]
[351088077,1738330235329,-2397.7,0.00017397,2]
[351088078,1738330235338,-500.0,0.00017397,2]
[351088079,1738330235348,-500.0,0.00017397,2]
[351088080,1738330235358,-500.0,0.00017397,2]
[351088081,1738330235367,-500.0,0.00017397,2]
[351088082,1738330235377,-561.65,0.00017397,2]
[351088083,1738330235386,-1225.63817906,0.00017397,2]
[351088130,1738330238168,-500.0,0.00016712,2]
[351088132,1738330238178,-500.0,0.00016849,2]
[351088134,1738330238188,-500.0,0.00016986,2]
[351088136,1738330238197,-500.0,0.00017123,2]
[351088138,1738330238206,-159.77450667,0.0001726,2]
[351088140,1738330238215,-1788.76867209,0.00017397,2]
[351088142,1738330238228,-1785.44314885,0.00017397,2]
[351088144,1738330238237,-500.0,0.00017397,2]
[351088146,1738330238246,-500.0,0.00017397,2]
[351088148,1738330238255,-500.0,0.00017397,2]
[351088150,1738330238264,-1399.21,0.00017397,2]
[351088152,1738330238273,-402.6663055,0.00017397,2]
[351088154,1738330238283,-2127.13620789,0.00017397,2]
[351088156,1738330238295,-33.26379211,0.00017397,2]
[351088158,1738330238305,-296.11304829,0.00017397,2]
[351088161,1738330238316,-500.0,0.00017397,2]
[351088162,1738330238326,-500.0,0.00017397,2]
[351088164,1738330238335,-1099.44,0.00017397,2]
[351088167,1738330238345,-500.0,0.00017397,2]
[351088168,1738330238354,-254.79945753,0.00017397,2]
[351088171,1738330238364,-497.2184366,0.00017425,2]
[351088173,1738330238373,-154.1572399,0.00017425,2]
[351088175,1738330238383,-700.0,0.00017452,2]
[351088177,1738330238392,-4224.86902175,0.000175,2]
[351088179,1738330238402,-455.12365124,0.00017533,2]
[351088181,1738330238411,-914.05209901,0.00017534,2]
[351088719,1738330243164,-373.18480852,0.00016438,2]
[351088727,1738330243223,-524.524,0.00016438,2]
[351089014,1738330246278,-662.67119148,0.00016438,2]
[351089016,1738330246288,-500.0,0.00016438,2]
[351089018,1738330246297,-1560.38,0.00016575,2]
[351089020,1738330246306,-500.0,0.00016575,2]
[351089022,1738330246316,-1560.38,0.00016712,2]
[351089024,1738330246325,-500.0,0.00016712,2]
[351089026,1738330246334,-147.45923852,0.00016849,2]
[351092368,1738331140574,293.835849,0.00013973,2]
[351092427,1738331432538,-205.8666538,0.00015644,2]
[351092428,1738331432548,-197.17716585,0.00016205,2]
[351092429,1738331432558,-206.40079128,0.00016305,2]
[351092430,1738331432570,-43.59920872,0.00016305,2]
[351092431,1738331432579,-932.81,0.00016438,2]
[351092432,1738331432589,-300.0,0.00016573,2]
[351092433,1738331432598,-1359.18,0.00016574,2]
[351092434,1738331432607,-500.0,0.00016574,2]
[351092435,1738331432617,-500.0,0.00016574,2]
[351092436,1738331432626,-500.0,0.00016574,2]
[351092437,1738331432635,-500.0,0.00016574,2]
[351092438,1738331432644,-3274.44,0.00016574,2]
[351092439,1738331432653,-500.0,0.00016574,2]
[351092440,1738331432663,-500.0,0.00016574,2]
[351092441,1738331432672,-500.0,0.00016574,2]
[351092442,1738331432681,-1440.26,0.00016574,2]
[351092443,1738331432691,-500.0,0.00016574,2]
[351092444,1738331432700,-500.0,0.00016574,2]
[351092445,1738331432709,-732.96,0.00016574,2]
[351092446,1738331432719,-500.0,0.00016574,2]
[351092447,1738331432728,-500.0,0.00016574,2]
[351092448,1738331432737,-500.0,0.00016574,2]
[351092449,1738331432747,-932.81,0.00016575,2]
[351092450,1738331432756,-1359.18,0.00016711,2]
[351092451,1738331432765,-500.0,0.00016711,2]
[351092452,1738331432774,-500.0,0.00016711,2]
[351092453,1738331432783,-500.0,0.00016711,2]
[351092454,1738331432793,-500.0,0.00016711,2]
[351092455,1738331432802,-3274.44,0.00016711,2]
[351092456,1738331432811,-500.0,0.00016711,2]
[351092457,1738331432820,-500.0,0.00016711,2]
[351092458,1738331432830,-500.0,0.00016711,2]
[351092459,1738331432840,-1440.26,0.00016711,2]
[351092460,1738331432849,-500.0,0.00016711,2]
[351092461,1738331432858,-177.6302807,0.00016711,2]
[351092462,1738331432867,-732.96,0.00016711,2]
[351092463,1738331432877,-500.0,0.00016711,2]
[351092464,1738331432886,-500.0,0.00016711,2]
[351092465,1738331432896,-500.0,0.00016711,2]
[351092466,1738331432905,-932.81,0.00016712,2]
[351092468,1738331432914,-200.0,0.000168,2]
[351092469,1738331432927,-1359.18,0.00016848,2]
[351092471,1738331432936,-500.0,0.00016848,2]
[351092473,1738331432947,-500.0,0.00016848,2]
[351092475,1738331432957,-500.0,0.00016848,2]
[351092477,1738331432967,-500.0,0.00016848,2]
[351092480,1738331432976,-3274.44,0.00016848,2]
[351092481,1738331432985,-283.85241604,0.00016848,2]
[351092484,1738331432996,-500.0,0.00016848,2]
[351092485,1738331433006,-500.0,0.00016848,2]
[351092487,1738331433016,-1440.26,0.00016848,2]
[351092489,1738331433025,-500.0,0.00016848,2]
[351092491,1738331433035,-732.96,0.00016848,2]
[351092493,1738331433044,-500.0,0.00016848,2]
[351092494,1738331433054,-500.0,0.00016848,2]
[351092496,1738331433063,-500.0,0.00016848,2]
[351092498,1738331433072,-932.81,0.00016849,2]
[351092500,1738331433083,-1000.0,0.0001688,2]
[351092502,1738331433092,-1359.18,0.00016985,2]
[351092504,1738331433102,-500.0,0.00016985,2]
[351092506,1738331433111,-500.0,0.00016985,2]
[351092507,1738331433120,-500.0,0.00016985,2]
[351092508,1738331433129,-500.0,0.00016985,2]
[351092510,1738331433138,-3274.44,0.00016985,2]
[351092512,1738331433148,-500.0,0.00016985,2]
[351092514,1738331433157,-500.0,0.00016985,2]
[351092515,1738331433166,-1440.26,0.00016985,2]
[351092517,1738331433175,-500.0,0.00016985,2]
[351092519,1738331433184,-732.96,0.00016985,2]
[351092521,1738331433194,-500.0,0.00016985,2]
[351092523,1738331433203,-500.0,0.00016985,2]
[351092525,1738331433212,-500.0,0.00016985,2]
[351092527,1738331433221,-932.81,0.00016986,2]
[351092529,1738331433231,-152.0,0.0001706,2]
[351092532,1738331433240,-1359.18,0.00017122,2]
[351092534,1738331433250,-500.0,0.00017122,2]
[351092536,1738331433259,-500.0,0.00017122,2]
[351092538,1738331433269,-500.0,0.00017122,2]
[351092540,1738331433278,-500.0,0.00017122,2]
[351092542,1738331433287,-3274.44,0.00017122,2]
[351092544,1738331433297,-500.0,0.00017122,2]
[351092546,1738331433307,-432.61,0.00017122,2]
[351092548,1738331433316,-1440.26,0.00017122,2]
[351092550,1738331433325,-500.0,0.00017122,2]
[351092552,1738331433335,-732.96,0.00017122,2]
[351092554,1738331433344,-500.0,0.00017122,2]
[351092556,1738331433353,-500.0,0.00017122,2]
[351092558,1738331433363,-159.77450667,0.00017122,2]
[351092560,1738331433373,-932.81,0.00017123,2]
[351092562,1738331433382,-1359.18,0.00017259,2]
[351092564,1738331433393,-466.1390796,0.00017259,2]
[351092566,1738331433402,-500.0,0.00017259,2]
[351092568,1738331433412,-500.0,0.00017259,2]
[351092570,1738331433421,-500.0,0.00017259,2]
[351092572,1738331433431,-3274.44,0.00017259,2]
[351092574,1738331433440,-346.56116538,0.00017259,2]
[351092597,1738331433650,-43.00883462,0.00017259,2]
[351092599,1738331433660,-599.61360797,0.00017259,2]
[351093467,1738331443404,-1019.39,0.00016574,2]
[351093468,1738331443414,-1019.39,0.00016711,2]
[351093469,1738331443424,-1019.39,0.00016848,2]
[351093470,1738331443433,-1019.39,0.00016985,2]
[351093471,1738331443443,-1019.39,0.00017122,2]
[351093472,1738331443454,-840.64639203,0.00017259,2]
[351093473,1738331443463,-500.0,0.00017259,2]
[351093474,1738331443472,-732.96,0.00017259,2]
[351093475,1738331443482,-500.0,0.00017259,2]
[351093476,1738331443491,-500.0,0.00017259,2]
[351093477,1738331443500,-1019.39,0.00017259,2]
[351093478,1738331443510,-932.81,0.0001726,2]
[351093479,1738331443519,-191.71173116,0.00017352,2]
[351093480,1738331443528,-500.0,0.00017396,2]
[351093482,1738331443537,-500.0,0.00017396,2]
[351093483,1738331443546,-500.0,0.00017396,2]
[351093484,1738331443555,-3274.44,0.00017396,2]
[351093485,1738331443564,-1440.26,0.00017396,2]
[351093486,1738331443574,-500.0,0.00017396,2]
[351093487,1738331443583,-732.96,0.00017396,2]
[351093488,1738331443593,-500.0,0.00017396,2]
[351093489,1738331443602,-500.0,0.00017396,2]
[351093490,1738331443613,-1019.39,0.00017396,2]
[351093491,1738331443622,-932.81,0.00017397,2]
[351093492,1738331443632,-700.0,0.00017452,2]
[351093493,1738331443641,-10938.46183397,0.00017515,2]
[351093494,1738331443651,-500.0,0.00017533,2]
[351093495,1738331443660,-500.0,0.00017533,2]
[351093496,1738331443670,-500.0,0.00017533,2]
[351093497,1738331443679,-3274.44,0.00017533,2]
[351093498,1738331443688,-1440.26,0.00017533,2]
[351093499,1738331443698,-500.0,0.00017533,2]
[351093500,1738331443708,-732.96,0.00017533,2]
[351093501,1738331443717,-500.0,0.00017533,2]
[351093502,1738331443726,-500.0,0.00017533,2]
[351093503,1738331443735,-1019.39,0.00017533,2]
[351093504,1738331443745,-932.81,0.00017534,2]
[351093505,1738331443755,-290.0,0.0001761,2]
[351093506,1738331443764,-500.0,0.00017645,2]
[351093507,1738331443774,-336.94,0.0001767,2]
[351093508,1738331443783,-500.0,0.0001767,2]
[351093509,1738331443792,-500.0,0.0001767,2]
[351093510,1738331443802,-3274.44,0.0001767,2]
[351093511,1738331443811,-1440.26,0.0001767,2]
[351093512,1738331443821,-500.0,0.0001767,2]
[351093513,1738331443831,-732.96,0.0001767,2]
[351093514,1738331443840,-500.0,0.0001767,2]
[351093515,1738331443850,-500.0,0.0001767,2]
[351093516,1738331443860,-1019.39,0.0001767,2]
[351093517,1738331443869,-932.81,0.00017671,2]
[351093518,1738331443879,-500.0,0.00017807,2]
[351093519,1738331443888,-500.0,0.00017807,2]
[351093520,1738331443897,-3274.44,0.00017807,2]
[351093521,1738331443907,-1440.26,0.00017807,2]
[351093522,1738331443917,-500.0,0.00017807,2]
[351093523,1738331443929,-732.96,0.00017807,2]
[351093524,1738331443939,-500.0,0.00017807,2]
[351093526,1738331443949,-341.92166965,0.00017807,2]
[351093528,1738331443959,-1019.39,0.00017807,2]
[351093530,1738331443969,-932.81,0.00017808,2]
[351093532,1738331443979,-902.93819125,0.000179,2]
[351093534,1738331443988,-444.75494251,0.00017943,2]
[351093536,1738331443999,-500.0,0.00017944,2]
[351093538,1738331444009,-500.0,0.00017944,2]
[351093540,1738331444018,-3274.44,0.00017944,2]
[351093542,1738331444028,-1440.26,0.00017944,2]
[351093544,1738331444037,-350.77,0.00017944,2]
[351093546,1738331444046,-732.96,0.00017944,2]
[351093548,1738331444055,-500.0,0.00017944,2]
[351093550,1738331444064,-1019.39,0.00017944,2]
[351093552,1738331444074,-932.81,0.00017945,2]
[351093554,1738331444083,-152.95,0.0001795,2]
[351093557,1738331444092,-1000.0,0.0001798,2]
[351093559,1738331444101,-902.93819097,0.00018072,2]
[351093561,1738331444110,-500.0,0.00018081,2]
[351093563,1738331444120,-500.0,0.00018081,2]
[351093565,1738331444129,-3274.44,0.00018081,2]
[351093567,1738331444138,-1440.26,0.00018081,2]
[351093569,1738331444147,-732.96,0.00018081,2]
[351093571,1738331444157,-500.0,0.00018081,2]
[351093573,1738331444166,-1019.39,0.00018081,2]
[351093575,1738331444176,-932.81,0.00018082,2]
[351093577,1738331444185,-420.0,0.00018109,2]
[351093579,1738331444194,-151.0,0.000182,2]
[351093581,1738331444204,-500.0,0.00018218,2]
[351093583,1738331444213,-500.0,0.00018218,2]
[351093585,1738331444222,-3274.44,0.00018218,2]
[351093587,1738331444232,-1440.26,0.00018218,2]
[351093589,1738331444241,-732.96,0.00018218,2]
[351093591,1738331444250,-500.0,0.00018218,2]
[351093593,1738331444260,-1019.39,0.00018218,2]
[351093595,1738331444269,-500.0,0.00018219,2]
[351093597,1738331444278,-500.0,0.00018219,2]
[351093599,1738331444287,-150.09,0.00018219,2]
[351093601,1738331444296,-151.02653263,0.00018219,2]
[351093603,1738331444305,-150.09,0.00018219,2]
[351093605,1738331444314,-500.0,0.00018219,2]
[351093607,1738331444324,-150.09,0.00018219,2]
[351093609,1738331444333,-932.81,0.00018219,2]
[351093610,1738331444342,-500.0,0.00018219,2]
[351093612,1738331444351,-500.0,0.00018219,2]
[351093615,1738331444361,-500.0,0.00018219,2]
[351093616,1738331444370,-150.09,0.00018219,2]
[351093619,1738331444379,-500.0,0.00018219,2]
[351093621,1738331444388,-150.09,0.00018219,2]
[351093622,1738331444398,-150.09,0.00018219,2]
[351093624,1738331444407,-500.0,0.00018219,2]
[351093626,1738331444416,-150.09,0.00018219,2]
[351093628,1738331444426,-902.93819097,0.00018245,2]
[351093630,1738331444435,-150.0,0.00018298,2]
[351093632,1738331444445,-537.0,0.00018298,2]
[351093634,1738331444455,-2042.0,0.00018298,2]
[351093636,1738331444464,-2303.0,0.00018298,2]
[351093638,1738331444473,-621.0,0.000183,2]
[351093640,1738331444482,-406.953,0.00018313,2]
[351093642,1738331444491,-500.0,0.00018355,2]
[351093644,1738331444500,-189.51,0.00018355,2]
[351093646,1738331444509,-3271.51719881,0.00018355,2]
[351095648,1738332092135,291.187041,0.00013973,2]
[351095731,1738332633001,-2612.4520126,0.00015457,2]
[351095733,1738332633011,-250.0,0.00015462,2]
[351095735,1738332633022,-895.00625304,0.000164,2]
[351097069,1738333084514,288.068525,0.00013973,2]
[351097206,1738333844054,-300.0,0.00015399,2]
[351097207,1738333844064,-1200.0,0.000154,2]
[351097230,1738334132963,273.665098,0.00013973,2]
[351097231,1738334270329,5000.0,0.000151,2]
[351097232,1738334615676,250.0,0.0001445,2]
[351097239,1738335025645,259.981843,0.00013973,2]
[351097275,1738335032214,-178.011722,0.00015291,2]
[351097277,1738335032224,-172.78556904,0.00015299,2]
[351097279,1738335032233,-172.78556903,0.00015299,2]
[351097281,1738335032242,-172.78556903,0.000153,2]
[351097283,1738335032252,-172.78556903,0.000153,2]
[351097285,1738335032261,-172.78556903,0.000153,2]
[351097287,1738335032270,-246.70893284,0.000154,2]
[351097289,1738335032282,-935.34417466,0.000154,2]
[351097292,1738335032293,-1643.71114581,0.000154,2]
[351097490,1738335043030,-5387.62479,0.000154,2]
[351097492,1738335043183,-10021.58790052,0.000154,2]
[351097517,1738335046045,-231.53911474,0.000154,2]
[351097518,1738335046054,-632.38873042,0.00016,2]
[351097522,1738335894811,212.78204,0.00015039,2]
[351097523,1738335980194,255.210477,0.00013973,2]
[351097524,1738336104195,1748.0733007,0.00014882,2]
[351097525,1738336149628,178.011722,0.0001487,2]
[351097576,1738336232336,-212.78204,0.00015114,2]
[351097578,1738336232347,-250.0,0.00015176,2]
[351097579,1738336232356,-446.28737382,0.000153,2]
[351097586,1738336232677,-267.89262618,0.000153,2]
[351097587,1738336232687,-153.225,0.0001558,2]
[351097588,1738336232696,-1683.23287969,0.000159,2]
[351097589,1738336232706,-300.0,0.00015999,2]
[351097590,1738336232715,-9921.95972228,0.00016,2]
[351097591,1738336232724,-158.80010477,0.00016,2]
[351097592,1738336232734,-4653.10757366,0.00016,2]
[351097593,1738336232743,-5000.0,0.00016,2]
[351097594,1738336232752,-151.0,0.00016,2]
[351097595,1738336232762,-151.0,0.00016,2]
[351097596,1738336232771,-151.0,0.00016,2]
[351097597,1738336232780,-151.0,0.00016,2]
[351097598,1738336232790,-151.0,0.00016,2]
[351097599,1738336232799,-151.0,0.00016,2]
[351097600,1738336232809,-151.0,0.00016,2]
[351097601,1738336232819,-151.0,0.00016,2]
[351097602,1738336232829,-151.0,0.00016,2]
[351097603,1738336232839,-170.503856,0.00016,2]
[351097604,1738336232848,-151.0,0.00016,2]
[351097605,1738336232858,-151.0,0.00016,2]
[351097606,1738336232868,-151.0,0.00016,2]
[351097607,1738336232877,-151.0,0.00016,2]
[351097608,1738336232887,-151.0,0.00016,2]
[351097609,1738336232897,-151.0,0.00016,2]
[351097610,1738336232907,-151.0,0.00016,2]
[351097611,1738336232916,-151.0,0.00016,2]
[351097612,1738336232926,-151.0,0.00016,2]
[351097613,1738336232935,-151.0,0.00016,2]
[351097614,1738336232945,-151.0,0.00016,2]
[351097615,1738336232955,-151.0,0.00016,2]
[351097616,1738336232965,-151.0,0.00016,2]
[351097617,1738336232974,-151.0,0.00016,2]
[351097618,1738336232984,-151.0,0.00016,2]
[351097619,1738336232993,-151.0,0.00016,2]
[351097620,1738336233003,-151.0,0.00016,2]
[351097621,1738336233012,-151.0,0.00016,2]
[351097622,1738336233022,-151.0,0.00016,2]
[351097623,1738336233032,-151.0,0.00016,2]
[351097624,1738336233042,-151.0,0.00016,2]
[351097625,1738336233051,-151.0,0.00016,2]
[351097626,1738336233060,-151.0,0.00016,2]
[351097627,1738336233070,-219.588604,0.00016,2]
[351097628,1738336233081,-215.190883,0.00016,2]
[351097629,1738336233091,-215.190883,0.00016,2]
[351097630,1738336233102,-215.190883,0.00016,2]
[351097631,1738336233112,-215.190883,0.00016,2]
[351097632,1738336233122,-215.190883,0.00016,2]
[351097633,1738336233131,-215.190883,0.00016,2]
[351097634,1738336233141,-215.190883,0.00016,2]
[351097635,1738336233151,-215.190883,0.00016,2]
[351097636,1738336233160,-215.190883,0.00016,2]
[351097637,1738336233170,-215.190883,0.00016,2]
[351097638,1738336233179,-151.0,0.00016,2]
[351097639,1738336233189,-151.0,0.00016,2]
[351097640,1738336233198,-151.0,0.00016,2]
[351097641,1738336233208,-394.746074,0.00016,2]
[351097642,1738336233217,-394.746074,0.00016,2]
[351097643,1738336233228,-394.746074,0.00016,2]
[351097644,1738336233237,-394.746074,0.00016,2]
[351097645,1738336233247,-394.746074,0.00016,2]
[351097646,1738336233256,-394.746074,0.00016,2]
[351097647,1738336233266,-394.746074,0.00016,2]
[351097648,1738336233275,-394.746074,0.00016,2]
[351097649,1738336233285,-394.746074,0.00016,2]
[351097650,1738336233294,-394.746074,0.00016,2]
[351097651,1738336233303,-394.746074,0.00016,2]
[351097652,1738336233313,-394.746074,0.00016,2]
[351097653,1738336233322,-151.0,0.00016,2]
[351097654,1738336233332,-151.0,0.00016,2]
[351097655,1738336233342,-151.0,0.00016,2]
[351097656,1738336233351,-151.0,0.00016,2]
[351097657,1738336233360,-151.0,0.00016,2]
[351097658,1738336233370,-151.0,0.00016,2]
[351097659,1738336233379,-151.0,0.00016,2]
[351097660,1738336233389,-151.0,0.00016,2]
[351097661,1738336233400,-151.0,0.00016,2]
[351097662,1738336233410,-151.0,0.00016,2]
[351097663,1738336233420,-151.0,0.00016,2]
[351097664,1738336233429,-151.0,0.00016,2]
[351097665,1738336233439,-151.0,0.00016,2]
[351097666,1738336233449,-261.083878,0.00016,2]
[351097667,1738336233458,-151.0,0.00016,2]
[351097668,1738336233468,-151.0,0.00016,2]
[351097669,1738336233477,-151.0,0.00016,2]
[351097670,1738336233487,-690.6444945,0.00016235,2]
[351097671,1738336233496,-1000.0,0.00016356,2]
[351097672,1738336233506,-151.0,0.00016356,2]
[351097673,1738336233515,-151.0,0.00016356,2]
[351097674,1738336233526,-151.0,0.00016356,2]
[351097675,1738336233537,-151.0,0.00016356,2]
[351097676,1738336233546,-151.0,0.00016356,2]
[351097677,1738336233555,-230.461438,0.00016356,2]
[351097678,1738336233565,-151.0,0.00016356,2]
[351097679,1738336233575,-151.0,0.00016356,2]
[351097680,1738336233584,-151.0,0.00016356,2]
[351097681,1738336233594,-151.0,0.00016356,2]
[351097682,1738336233604,-215.190883,0.00016356,2]
[351097683,1738336233614,-215.190883,0.00016356,2]
[351097684,1738336233624,-215.190883,0.00016356,2]
[351097685,1738336233635,-215.190883,0.00016356,2]
[351097686,1738336233643,-394.746074,0.00016356,2]
[351097687,1738336233653,-394.746074,0.00016356,2]
[351097688,1738336233663,-394.746074,0.00016356,2]
[351097689,1738336233672,-394.746074,0.00016356,2]
[351097690,1738336233681,-208.964424,0.00016356,2]
[351097691,1738336233691,-1271.43621428,0.00016399,2]
[351097692,1738336233700,-151.0,0.00016399,2]
[351097693,1738336233709,-151.0,0.00016399,2]
[351097694,1738336233719,-151.0,0.00016399,2]
[351097695,1738336233728,-151.0,0.00016399,2]
[351097696,1738336233737,-151.0,0.00016399,2]
[351097697,1738336233747,-151.0,0.00016399,2]
[351097698,1738336233756,-151.0,0.00016399,2]
[351097699,1738336233765,-151.0,0.00016399,2]
[351097700,1738336233774,-151.0,0.00016399,2]
[351097701,1738336233783,-151.0,0.00016399,2]
[351097702,1738336233793,-151.0,0.00016399,2]
[351097703,1738336233803,-151.0,0.00016399,2]
[351097704,1738336233812,-151.0,0.00016399,2]
[351097705,1738336233821,-215.190883,0.00016399,2]
[351097706,1738336233832,-215.190883,0.00016399,2]
[351097707,1738336233842,-215.190883,0.00016399,2]
[351097708,1738336233852,-215.190883,0.00016399,2]
[351097709,1738336233862,-215.190883,0.00016399,2]
[351097710,1738336233871,-215.190888,0.00016399,2]
[351097711,1738336233881,-394.746074,0.00016399,2]
[351097712,1738336233890,-394.746074,0.00016399,2]
[351097713,1738336233900,-394.746074,0.00016399,2]
[351097714,1738336233910,-394.74606998,0.00016399,2]
[351097715,1738336233919,-3000.0,0.000164,2]
[351097716,1738336233928,-175.81566324,0.000164,2]
[351097717,1738336233937,-2050.67417388,0.00016402,2]
[351097718,1738336233947,-3000.0,0.0001641,2]
[351097719,1738336233956,-3000.0,0.0001642,2]
[351097720,1738336233966,-3000.0,0.0001643,2]
[351097721,1738336233976,-500.0,0.00016438,2]
[351097722,1738336233986,-500.0,0.00016438,2]
[351097723,1738336233995,-500.0,0.00016438,2]
[351097724,1738336234005,-854.59,0.00016438,2]
[351097725,1738336234015,-500.0,0.00016438,2]
[351097726,1738336234025,-500.0,0.00016438,2]
[351097727,1738336234035,-887.47,0.00016438,2]
[351097728,1738336234044,-800.29,0.00016438,2]
[351097729,1738336234054,-500.0,0.00016438,2]
[351097730,1738336234063,-2625.34,0.00016438,2]
[351097731,1738336234073,-500.0,0.00016438,2]
[351097732,1738336234083,-921.53,0.00016438,2]
[351097733,1738336234093,-500.0,0.00016438,2]
[351097734,1738336234103,-3000.0,0.0001644,2]
[351097735,1738336234112,-3000.0,0.0001645,2]
[351097736,1738336234122,-3000.0,0.0001646,2]
[351097737,1738336234131,-3000.0,0.0001647,2]
[351097738,1738336234140,-3000.0,0.0001648,2]
[351097739,1738336234150,-3000.0,0.0001649,2]
[351097740,1738336234159,-3000.0,0.000165,2]
[351097741,1738336234168,-3000.0,0.0001651,2]
[351097742,1738336234177,-3000.0,0.0001652,2]
[351097743,1738336234186,-3000.0,0.0001653,2]
[351097744,1738336234196,-3000.0,0.0001654,2]
[351097745,1738336234205,-3000.0,0.0001655,2]
[351097746,1738336234214,-3000.0,0.0001656,2]
[351097747,1738336234224,-3000.0,0.0001657,2]
[351097748,1738336234234,-500.0,0.00016575,2]
[351097749,1738336234243,-500.0,0.00016575,2]
[351097750,1738336234252,-500.0,0.00016575,2]
[351097751,1738336234262,-854.59,0.00016575,2]
[351097752,1738336234271,-500.0,0.00016575,2]
[351097753,1738336234280,-500.0,0.00016575,2]
[351097754,1738336234290,-887.47,0.00016575,2]
[351097755,1738336234300,-800.29,0.00016575,2]
[351097756,1738336234310,-500.0,0.00016575,2]
[351097757,1738336234319,-2625.34,0.00016575,2]
[351097758,1738336234329,-611.86,0.00016575,2]
[351097759,1738336234339,-921.53,0.00016575,2]
[351097760,1738336234348,-500.0,0.00016575,2]
[351097761,1738336234358,-153.0,0.00016575,2]
[351097762,1738336234368,-3000.0,0.0001658,2]
[351097763,1738336234377,-3000.0,0.0001659,2]
[351097764,1738336234386,-3000.0,0.000166,2]
[351097765,1738336234396,-3000.0,0.0001661,2]
[351097766,1738336234405,-3000.0,0.0001662,2]
[351097767,1738336234414,-3000.0,0.0001663,2]
[351097768,1738336234424,-3000.0,0.0001664,2]
[351097769,1738336234433,-3000.0,0.0001665,2]
[351097770,1738336234443,-3000.0,0.0001666,2]
[351097771,1738336234452,-3000.0,0.0001667,2]
[351097772,1738336234462,-3000.0,0.0001668,2]
[351097773,1738336234471,-3000.0,0.0001669,2]
[351097774,1738336234480,-5988.692956,0.000167,2]
[351097775,1738336234490,-500.0,0.00016712,2]
[351097776,1738336234499,-500.0,0.00016712,2]
[351097777,1738336234508,-500.0,0.00016712,2]
[351097778,1738336234517,-854.59,0.00016712,2]
[351097779,1738336234530,-500.0,0.00016712,2]
[351097780,1738336234541,-281.93,0.00016712,2]
[351097781,1738336234551,-887.47,0.00016712,2]
[351097782,1738336234560,-800.29,0.00016712,2]
[351097783,1738336234569,-500.0,0.00016712,2]
[351097784,1738336234580,-2625.34,0.00016712,2]
[351097785,1738336234589,-921.53,0.00016712,2]
[351097786,1738336234599,-500.0,0.00016712,2]
[351097787,1738336234608,-369.5,0.00016791,2]
[351097788,1738336234833,-500.0,0.00016849,2]
[351097789,1738336234843,-500.0,0.00016849,2]
[351097790,1738336234852,-500.0,0.00016849,2]
[351097791,1738336234862,-854.59,0.00016849,2]
[351097792,1738336234871,-500.0,0.00016849,2]
[351097793,1738336234880,-887.47,0.00016849,2]
[351097794,1738336234890,-800.29,0.00016849,2]
[351097795,1738336234899,-486.46,0.00016849,2]